fUST/lending_fUST_20250916
["ID","MTS","AMOUNT","RATE_DAILY","PERIOD"]
[385744233,1758001842616,-480.0,0.00023835,3]
[385744234,1758001842626,-742.64,0.00023835,3]
[385744235,1758001842635,-4357.14,0.00023835,3]
[385744236,1758001842644,-480.0,0.00023835,3]
[385744237,1758001842653,-480.0,0.00023835,3]
[385744238,1758001842662,-480.0,0.00023835,3]
[385744239,1758001842671,-1694.44,0.00023835,3]
[385744240,1758001842680,-153.78010323,0.00023835,3]
[385744241,1758001842689,-480.0,0.00023835,3]
[385744242,1758001842709,-12.80353552,0.00023835,3]
[385744243,1758001842979,-480.0,0.00021917,2]
[385744244,1758001842988,-576.87646448,0.00023835,3]
[385744245,1758001842997,-785.88,0.00023835,3]
[385744246,1758001843006,-480.0,0.00023835,3]
[385744247,1758001843015,-480.0,0.00023835,3]
[385744248,1758001843024,-508.01512079,0.00023898,2]
[385744249,1758001843033,-1000.0,0.00023898,2]
[385744250,1758001843042,-1000.0,0.00023898,2]
[385744251,1758001843052,-1000.0,0.00023898,2]
[385744252,1758001843061,-1001.47837506,0.00023898,2]
[385744253,1758001843070,-1000.0,0.00023898,2]
[385744254,1758001843079,-1000.0,0.00023898,2]
[385744255,1758001843088,-1000.0,0.00023898,2]
[385744256,1758001843098,-1000.0,0.00023898,2]
[385744258,1758001843107,-1000.0,0.00023898,2]
[385744260,1758001843116,-168.0,0.00023931,2]
[385744262,1758001843125,-151.0,0.00024,7]
[385744264,1758001843134,-847.61663983,0.00024,7]
[385744265,1758001843143,-579.77762448,0.00024087,2]
[385744266,1758001843152,-168.0,0.00024104,2]
[385744267,1758001843161,-480.0,0.00024109,3]
[385744268,1758001843170,-969.47,0.00024109,3]
[385744269,1758001843179,-869.01,0.00024109,3]
[385744270,1758001843189,-480.0,0.00024109,3]
[385744271,1758001843198,-742.64,0.00024109,3]
[385744272,1758001843207,-4357.14,0.00024109,3]
[385744273,1758001843216,-480.0,0.00024109,3]
[385744274,1758001843225,-480.0,0.00024109,3]
[385744275,1758001843235,-480.0,0.00024109,3]
[385744276,1758001843244,-1694.44,0.00024109,3]
[385744277,1758001843253,-480.0,0.00024109,3]
[385744278,1758001843262,-785.88,0.00024109,3]
[385744279,1758001843271,-480.0,0.00024109,3]
[385744280,1758001843280,-480.0,0.00024109,3]
[385744281,1758001843289,-614.4696082,0.00024164,2]
[385744282,1758001843299,-168.0,0.00024175,2]
[385744283,1758001843308,-2200.0,0.00024207,2]
[385744284,1758001843317,-185.4,0.00024226,3]
[385744285,1758001843326,-460.0,0.00024271,2]
[385744286,1758001843335,-2500.0,0.00024364,2]
[385744287,1758001843345,-1512.71049064,0.00024364,2]
[385744288,1758001843354,-173.75285733,0.00024383,3]
[385744289,1758001843363,-969.47,0.00024383,3]
[385744290,1758001843373,-869.01,0.00024383,3]
[385744291,1758001843382,-480.0,0.00024383,3]
[385744292,1758001843392,-742.64,0.00024383,3]
[385744293,1758001843402,-4357.14,0.00024383,3]
[385744294,1758001843412,-480.0,0.00024383,3]
[385744295,1758001843421,-480.0,0.00024383,3]
[385744296,1758001843430,-480.0,0.00024383,3]
[385744297,1758001843439,-1694.44,0.00024383,3]
[385744298,1758001843449,-480.0,0.00024383,3]
[385744299,1758001843458,-785.88,0.00024383,3]
[385744300,1758001843467,-480.0,0.00024383,3]
[385744301,1758001843476,-167.82,0.00024383,3]
[385744302,1758001843485,-1500.0,0.00024446,2]
[385744303,1758001843495,-502.61062955,0.00024446,2]
[385744304,1758001843504,-1500.0,0.00024446,2]
[385744305,1758001843513,-1500.0,0.00024446,2]
[385744306,1758001843522,-1500.0,0.00024446,2]
[385744307,1758001843532,-1500.0,0.00024446,2]
[385744308,1758001843541,-684.61647612,0.00024446,2]
[385744309,1758001843551,-1500.0,0.00024446,2]
[385744310,1758001843560,-3640.0,0.0002449,2]
[385744311,1758001843569,-151.0,0.000245,5]
[385744312,1758001843583,-168.0,0.00024576,2]
[385744313,1758001843593,-168.0,0.00024582,2]
[385744314,1758001843602,-2351.0,0.00024626,2]
[385744315,1758001843612,-200.52070568,0.00024657,2]
[385744316,1758001843623,-969.47,0.00024657,3]
[385744317,1758001843632,-869.01,0.00024657,3]
[385744318,1758001843642,-480.0,0.00024657,3]
[385744319,1758001843652,-742.64,0.00024657,3]
[385744320,1758001843661,-4357.14,0.00024657,3]
[385744321,1758001843671,-480.0,0.00024657,3]
[385744322,1758001843680,-480.0,0.00024657,3]
[385744323,1758001843689,-480.0,0.00024657,3]
[385744324,1758001843699,-1694.44,0.00024657,3]
[385744325,1758001843708,-480.0,0.00024657,3]
[385744326,1758001843717,-785.88,0.00024657,3]
[385744327,1758001843726,-480.0,0.00024657,3]
[385744328,1758001843735,-380.0,0.00024658,2]
[385744329,1758001843745,-500.0,0.00024658,2]
[385744330,1758001843755,-3640.0,0.00024669,2]
[385744331,1758001843764,-2737.23,0.000247,7]
[385744332,1758001843773,-847.61663983,0.000247,7]
[385744333,1758001843783,-168.0,0.00024716,2]
[385744334,1758001843792,-161.16784891,0.000248,2]
[385744335,1758001843802,-560.0,0.00024818,2]
[385744336,1758001843811,-185.4,0.00024824,4]
[385744337,1758001843820,-501.28892933,0.00024873,2]
[385744338,1758001843829,-500.0,0.00024873,2]
[385744339,1758001843838,-500.0,0.00024873,2]
[385744340,1758001843847,-500.0,0.00024873,2]
[385744341,1758001843856,-500.0,0.00024873,2]
[385744342,1758001843866,-598.63780128,0.00024873,2]
[385744343,1758001843875,-160.78383503,0.00024873,2]
[385744344,1758001843884,-500.0,0.00024873,2]
[385744345,1758001843892,-500.0,0.00024873,2]
[385744346,1758001843901,-500.0,0.00024873,2]
[385744347,1758001843911,-500.68194385,0.00024873,2]
[385744348,1758001843920,-500.0,0.00024873,2]
[385744349,1758001843929,-202.78673421,0.00024873,2]
[385744350,1758001843938,-500.0,0.00024873,2]
[385744351,1758001843947,-500.0,0.00024873,2]
[385744352,1758001843956,-501.04196088,0.00024873,2]
[385744353,1758001843965,-500.23749209,0.00024873,2]
[385744354,1758001843974,-500.78713878,0.00024873,2]
[385744355,1758001843983,-549.37598915,0.00024873,2]
[385744356,1758001843993,-500.0,0.00024873,2]
[385744357,1758001844002,-501.17687178,0.00024873,2]
[385744358,1758001844011,-500.0,0.00024873,2]
[385744359,1758001844020,-154.738351,0.000249,7]
[385744360,1758001844029,-155.420887,0.000249,7]
[385744361,1758001844039,-151.0,0.000249,7]
[385744362,1758001844048,-158.530528,0.000249,7]
[385744363,1758001844057,-151.0,0.000249,7]
[385744364,1758001844066,-151.0,0.000249,7]
[385744365,1758001844075,-151.0,0.000249,7]
[385744366,1758001844084,-155.688121,0.000249,7]
[385744367,1758001844093,-151.0,0.000249,7]
[385744368,1758001844102,-153.442791,0.000249,7]
[385744369,1758001844111,-151.0,0.000249,7]
[385744370,1758001844121,-151.0,0.000249,7]
[385744371,1758001844130,-151.0,0.000249,7]
[385744372,1758001844139,-151.0,0.000249,7]
[385744373,1758001844149,-468.65230688,0.000249,2]
[385744374,1758001844158,-151.0,0.000249,7]
[385744375,1758001844168,-70576.38214983,0.000249,2]
[385744376,1758001844214,-339.69,0.0002059,10]
[385744377,1758001844223,-1402.04732136,0.000249,2]
[385744387,1758001845896,-269.05,0.000249,2]
[385744400,1758001846007,-707.121888,0.000249,2]
[385744453,1758001846488,-641.43899706,0.000249,2]
[385744455,1758001846499,-1410.29848963,0.000249,2]
[385744783,1758001931554,88608.59949766,0.000205,2]
[385744784,1758002094150,209.0,0.000277,30]
[385744785,1758002116528,300.0,0.00027397,120]
[385744786,1758002151259,2700.0,0.00019275,2]
[385744788,1758002154867,2700.0,0.00020371,2]
[385744789,1758002173736,295.821047,0.00027753,30]
[385744795,1758002450320,-1000.0,0.00020838,2]
[385744796,1758002450354,-170.43448842,0.00021064,2]
[385744797,1758002450387,-2700.0,0.00021467,2]
[385744798,1758002450415,-300.0,0.00021815,2]
[385744799,1758002450444,-300.0,0.00021815,2]
[385744800,1758002450473,-300.0,0.00021815,2]
[385744801,1758002450568,-1200.0,0.00021815,2]
[385744802,1758002450599,-1445.31521267,0.00021817,2]
[385744803,1758002450628,-762.02414734,0.00021916,2]
[385744804,1758002450789,-873.26858066,0.00021916,2]
[385744805,1758002450812,-10000.01,0.00021916,2]
[385744806,1758002450828,-10000.01,0.00021916,2]
[385744807,1758002450859,-2076.67328957,0.00021916,2]
[385744808,1758002450881,-5846.66342086,0.00021916,2]
[385744809,1758002661411,162.0,0.0002059,10]
[385744810,1758002661441,155.31397077,0.0002059,10]
[385744811,1758002670492,5000.0,0.00020526,2]
[385744812,1758002694248,292.36272513,0.00020526,2]
[385744813,1758002732270,300.0,0.00027397,120]
[385744814,1758002747456,10000.0,0.00020526,2]
[385744815,1758002755272,0.01,0.00020526,2]
[385744816,1758002757435,-266.50933097,0.00020526,2]
[385744817,1758002758770,-266.52933097,0.00020526,2]
[385744818,1758002761406,300.0,0.00020526,2]
[385744819,1758002761658,-304.74421352,0.00020526,2]
[385744820,1758002764579,-233.49066903,0.00020526,2]
[385744821,1758002766057,10000.0,0.00020526,2]
[385744822,1758002767166,-154.12364974,0.00020526,2]
[385744823,1758002768970,-1225.41719423,0.00020526,2]
[385744824,1758002769017,-7016.1169496,0.00020526,2]
[385744825,1758002769572,-157.62398512,0.00020526,2]
[385744826,1758002769605,399.19777722,0.00020526,2]
[385744827,1758002771948,-284.19982451,0.00020526,2]
[385744828,1758002772710,10000.0,0.00020526,2]
[385744829,1758002776753,-91.23485231,0.00020526,2]
[385744830,1758002776777,-280.60269319,0.00020589,2]
[385744831,1758002778151,-19.39730681,0.00020589,2]
[385744832,1758002780370,10000.0,0.00020526,2]
[385744833,1758002788706,0.01,0.0002059,2]
[385744834,1758002794146,10000.0,0.00020526,2]
[385744835,1758002807315,1263.10007642,0.00020526,2]
[385744836,1758002815379,1728.03063548,0.00020526,2]
[385744837,1758002818838,10000.0,0.00020526,2]
[385744838,1758002825560,500.0,0.000205,2]
[385744839,1758002837071,500.0,0.000205,2]
[385744840,1758002845880,2418.491463,0.00020526,2]
[385744841,1758002848175,500.0,0.000205,2]
[385744842,1758002850186,-300.0,0.00020589,2]
[385744843,1758002850206,-484.73159309,0.0002059,2]
[385744844,1758002854656,8870.0,0.00020526,2]
[385744846,1758002928680,1000.0,0.00028,120]
[385744847,1758002937770,1000.0,0.00028,30]
[385744848,1758003003919,-254.96543737,0.00020589,2]
[385744849,1758003008754,-225.04068905,0.00020589,2]
[385744850,1758003011766,-168.0,0.00020589,2]
[385744851,1758003013898,-242.45773546,0.00020589,2]
[385744852,1758003015349,-185.17404277,0.00020589,2]
[385744853,1758003019071,-124.36209535,0.00020589,2]
[385744882,1758003032140,-1517.95025589,0.0002059,2]
[385744884,1758003032152,-7997.30815102,0.0002059,2]
[385744885,1758003032161,-300.0,0.00020929,2]
[385744886,1758003032170,-300.0,0.00020929,2]
[385744887,1758003032180,-300.0,0.00020929,2]
[385744888,1758003032189,-300.0,0.00020929,2]
[385744889,1758003032198,-589.012706,0.0002093,2]
[385744890,1758003032207,-2163.71438621,0.00021353,2]
[385744891,1758003032216,-1379.71016289,0.00021817,2]
[385744892,1758003032226,-283.08,0.00021907,10]
[385744893,1758003032235,-235.9,0.00021907,10]
[385744894,1758003032245,-196.58,0.00021907,10]
[385744895,1758003032255,-618.40556865,0.00021915,2]
[385744896,1758003032265,-500.0,0.00021916,2]
[385744897,1758003032274,-204.99142257,0.00021916,2]
[385744898,1758003032284,-500.0,0.00021916,2]
[385744899,1758003032293,-500.0,0.00021916,2]
[385744900,1758003032302,-225.23296119,0.00021916,2]
[385744901,1758003032311,-185.20424713,0.00021916,2]
[385744902,1758003032320,-500.0,0.00021916,2]
[385744903,1758003032333,-304.74421352,0.00021916,2]
[385744904,1758003032343,-300.15654832,0.00021916,2]
[385744905,1758003032352,-500.0,0.00021916,2]
[385744906,1758003032361,-195.25578648,0.00021916,2]
[385744907,1758003032370,-500.0,0.00021916,2]
[385744908,1758003032379,-500.0,0.00021916,2]
[385744909,1758003032388,-413.39543502,0.00021916,2]
[385744910,1758003032398,-500.0,0.00021916,2]
[385744911,1758003032408,-500.0,0.00021916,2]
[385744912,1758003032417,-500.0,0.00021916,2]
[385744913,1758003032426,-500.0,0.00021916,2]
[385744914,1758003032435,-256.68845989,0.00021916,2]
[385744915,1758003032445,-393.85798916,0.00021916,2]
[385744916,1758003032454,-500.0,0.00021916,2]
[385744917,1758003032463,-415.68800699,0.00021916,2]
[385744918,1758003032472,-479.65918422,0.00021917,2]
[385744919,1758003032481,-480.0,0.00021917,2]
[385744920,1758003032491,-490.52703112,0.00021917,2]
[385744921,1758003032500,-480.0,0.00021917,2]
[385744922,1758003032509,-438.8330069,0.00021917,2]
[385744923,1758003032518,-285.87527844,0.00021917,2]
[385744924,1758003032527,-502.19958278,0.00021917,2]
[385744925,1758003032536,-490.18470489,0.00021917,2]
[385744926,1758003032545,-480.0,0.00021917,2]
[385744927,1758003032555,-490.54059134,0.00021917,2]
[385744928,1758003032564,-441.81047894,0.00021917,2]
[385744929,1758003032573,-248.7337536,0.00021917,2]
[385744930,1758003032582,-482.78133184,0.00021917,2]
[385744931,1758003032591,-480.0,0.00021917,2]
[385744932,1758003032600,-480.0,0.00021917,2]
[385744933,1758003032610,-501.43586876,0.00021917,2]
[385744934,1758003032619,-493.50875592,0.00021917,2]
[385744935,1758003032628,-496.06163564,0.00021917,2]
[385744936,1758003032637,-480.0,0.00021917,2]
[385744937,1758003032646,-480.0,0.00021917,2]
[385744938,1758003032655,-480.0,0.00021917,2]
[385744939,1758003032666,-480.0,0.00021917,2]
[385744940,1758003032685,-471.87459895,0.00021917,2]
[385744941,1758003032706,-480.0,0.00021917,2]
[385744942,1758003032715,-448.88432873,0.00021917,2]
[385744943,1758003032726,-480.0,0.00021917,2]
[385744944,1758003032736,-480.0,0.00021917,2]
[385744945,1758003032747,-433.34661456,0.00021917,2]
[385744946,1758003032757,-480.0,0.00021917,2]
[385744947,1758003032766,-480.0,0.00021917,2]
[385744948,1758003032775,-480.0,0.00021917,2]
[385744949,1758003032785,-480.0,0.00021917,2]
[385744950,1758003032794,-480.0,0.00021917,2]
[385744951,1758003032803,-827.89,0.00021917,2]
[385744952,1758003032813,-480.0,0.00021917,2]
[385744953,1758003032822,-260.57225346,0.00021917,2]
[385744954,1758003032831,-480.0,0.00021917,2]
[385744955,1758003032841,-480.0,0.00021917,2]
[385744956,1758003032850,-480.0,0.00021917,2]
[385744957,1758003032859,-480.0,0.00021917,2]
[385744958,1758003032869,-480.0,0.00021917,2]
[385744959,1758003032878,-480.0,0.00021917,2]
[385744960,1758003032887,-487.96307943,0.00021917,2]
[385744961,1758003032896,-480.0,0.00021917,2]
[385744962,1758003032906,-505.44926189,0.00021917,2]
[385744963,1758003032915,-480.0,0.00021917,2]
[385744964,1758003032925,-522.27112578,0.00021917,2]
[385744965,1758003032934,-480.0,0.00021917,2]
[385744966,1758003032942,-480.0,0.00021917,2]
[385744967,1758003032952,-480.0,0.00021917,2]
[385744968,1758003032961,-480.0,0.00021917,2]
[385744969,1758003032970,-480.0,0.00021917,2]
[385744970,1758003032979,-558.53,0.00021917,2]
[385744971,1758003032988,-166.45476434,0.00021917,2]
[385744972,1758003032997,-480.0,0.00021917,2]
[385744973,1758003033006,-480.0,0.00021917,2]
[385744974,1758003033016,-480.0,0.00021917,2]
[385744975,1758003033025,-480.0,0.00021917,2]
[385744976,1758003033035,-480.0,0.00021917,2]
[385744977,1758003033045,-480.0,0.00021917,2]
[385744978,1758003033054,-480.0,0.00021917,2]
[385744979,1758003033064,-466.68839696,0.00021917,2]
[385744980,1758003033074,-480.0,0.00021917,2]
[385744981,1758003033084,-480.0,0.00021917,2]
[385744982,1758003033094,-480.0,0.00021917,2]
[385744983,1758003033103,-480.0,0.00021917,2]
[385744984,1758003033112,-470.7558479,0.00021917,2]
[385744985,1758003033122,-500.0,0.00021917,2]
[385744986,1758003033131,-480.0,0.00021917,2]
[385744987,1758003033140,-480.0,0.00021917,2]
[385744988,1758003033149,-480.0,0.00021917,2]
[385744989,1758003033161,-480.0,0.00021917,2]
[385744990,1758003033170,-472.11650115,0.00021917,2]
[385744991,1758003033180,-487.83814807,0.00021917,2]
[385744992,1758003033190,-480.0,0.00021917,2]
[385744993,1758003033199,-480.0,0.00021917,2]
[385744994,1758003033208,-480.0,0.00021917,2]
[385744995,1758003033218,-491.68860742,0.00021917,2]
[385744996,1758003033227,-480.0,0.00021917,2]
[385744997,1758003033237,-480.0,0.00021917,2]
[385744998,1758003033247,-480.0,0.00021917,2]
[385744999,1758003033256,-472.75482603,0.00021917,2]
[385745000,1758003033266,-480.0,0.00021917,2]
[385745001,1758003033276,-480.0,0.00021917,2]
[385745002,1758003033285,-480.0,0.00021917,2]
[385745003,1758003033294,-465.81639686,0.00021917,2]
[385745004,1758003033304,-745.09,0.00021917,2]
[385745005,1758003033313,-480.0,0.00021917,2]
[385745006,1758003033323,-480.0,0.00021917,2]
[385745007,1758003033336,-480.0,0.00021917,2]
[385745008,1758003033346,-763.37,0.00021917,2]
[385745009,1758003033356,-480.0,0.00021917,2]
[385745010,1758003033365,-480.0,0.00021917,2]
[385745011,1758003033375,-475.81677073,0.00021917,2]
[385745012,1758003033385,-427.5135894,0.00021917,2]
[385745013,1758003033395,-480.0,0.00021917,2]
[385745014,1758003033404,-480.0,0.00021917,2]
[385745015,1758003033414,-480.0,0.00021917,2]
[385745016,1758003033425,-482.84894603,0.00021917,2]
[385745017,1758003033435,-480.0,0.00021917,2]
[385745018,1758003033444,-480.0,0.00021917,2]
[385745019,1758003033454,-480.0,0.00021917,2]
[385745020,1758003033464,-465.28226658,0.00021917,2]
[385745021,1758003033474,-521.26218663,0.00021917,2]
[385745022,1758003033484,-480.0,0.00021917,2]
[385745023,1758003033494,-480.0,0.00021917,2]
[385745024,1758003033503,-480.0,0.00021917,2]
[385745025,1758003033512,-480.0,0.00021917,2]
[385745026,1758003033522,-482.2938915,0.00021917,2]
[385745027,1758003033532,-480.0,0.00021917,2]
[385745028,1758003033541,-558.43643192,0.00021917,2]
[385745029,1758003033551,-480.0,0.00021917,2]
[385745030,1758003033560,-473.38984693,0.00021917,2]
[385745031,1758003033570,-480.0,0.00021917,2]
[385745032,1758003033579,-480.0,0.00021917,2]
[385745033,1758003033588,-480.0,0.00021917,2]
[385745034,1758003033598,-480.0,0.00021917,2]
[385745035,1758003033607,-638.86,0.00021917,2]
[385745036,1758003033617,-480.0,0.00021917,2]
[385745037,1758003033627,-480.0,0.00021917,2]
[385745038,1758003033636,-480.0,0.00021917,2]
[385745039,1758003033646,-3758.28,0.00021917,2]
[385745040,1758003033655,-480.0,0.00021917,2]
[385745041,1758003033665,-480.0,0.00021917,2]
[385745042,1758003033675,-480.0,0.00021917,2]
[385745043,1758003033684,-480.0,0.00021917,2]
[385745044,1758003033695,-480.0,0.00021917,2]
[385745045,1758003033704,-480.0,0.00021917,2]
[385745046,1758003033714,-480.0,0.00021917,2]
[385745047,1758003033724,-308.6745449,0.00021917,2]
[385745048,1758003033733,-483.1320794,0.00021917,2]
[385745049,1758003033743,-480.0,0.00021917,2]
[385745050,1758003033752,-480.0,0.00021917,2]
[385745051,1758003033763,-480.0,0.00021917,2]
[385745052,1758003033772,-480.0,0.00021917,2]
[385745053,1758003033782,-500.0,0.00021917,2]
[385745054,1758003033792,-500.0,0.00021917,2]
[385745055,1758003033801,-193.11695866,0.00021917,2]
[385745056,1758003033811,-480.0,0.00021917,2]
[385745057,1758003033821,-480.0,0.00021917,2]
[385745058,1758003033830,-480.0,0.00021917,2]
[385745059,1758003033839,-480.0,0.00021917,2]
[385745060,1758003033849,-480.0,0.00021917,2]
[385745061,1758003033859,-480.0,0.00021917,2]
[385745062,1758003033868,-480.0,0.00021917,2]
[385745063,1758003033878,-481.80706522,0.00021917,2]
[385745064,1758003033888,-485.75558223,0.00021917,2]
[385745065,1758003033897,-480.0,0.00021917,2]
[385745066,1758003033908,-469.82005669,0.00021917,2]
[385745067,1758003033917,-480.0,0.00021917,2]
[385745068,1758003033927,-480.0,0.00021917,2]
[385745069,1758003033936,-480.0,0.00021917,2]
[385745070,1758003033945,-480.0,0.00021917,2]
[385745071,1758003033954,-14.19467836,0.00021917,2]
[385745072,1758003033974,-465.80532164,0.00021917,2]
[385745073,1758003033984,-480.0,0.00021917,2]
[385745074,1758003033994,-480.0,0.00021917,2]
[385745075,1758003034003,-500.0,0.00021917,2]
[385745076,1758003034013,-500.0,0.00021917,2]
[385745077,1758003034022,-480.0,0.00021917,2]
[385745078,1758003034031,-484.15126909,0.00021917,2]
[385745079,1758003034040,-480.0,0.00021917,2]
[385745080,1758003034049,-483.72614278,0.00021917,2]
[385745081,1758003034059,-480.0,0.00021917,2]
[385745082,1758003034068,-480.0,0.00021917,2]
[385745083,1758003034077,-480.0,0.00021917,2]
[385745084,1758003034086,-472.13290087,0.00021917,2]
[385745085,1758003034096,-334.15664772,0.00021917,2]
[385745086,1758003034105,-385.03105187,0.00021917,2]
[385745087,1758003034115,-480.0,0.00021917,2]
[385745088,1758003034124,-439.9465183,0.00021917,2]
[385745089,1758003034133,-480.0,0.00021917,2]
[385745090,1758003034142,-480.0,0.00021917,2]
[385745091,1758003034151,-480.0,0.00021917,2]
[385745092,1758003034161,-465.59263825,0.00021917,2]
[385745093,1758003034170,-500.0,0.00021917,2]
[385745094,1758003034179,-480.0,0.00021917,2]
[385745095,1758003034188,-480.0,0.00021917,2]
[385745096,1758003034196,-489.40077961,0.00021917,2]
[385745097,1758003034205,-485.4358921,0.00021917,2]
[385745098,1758003034214,-480.0,0.00021917,2]
[385745099,1758003034223,-480.0,0.00021917,2]
[385745100,1758003034233,-455.08852253,0.00021917,2]
[385745101,1758003034242,-467.52998389,0.00021917,2]
[385745102,1758003034251,-480.0,0.00021917,2]
[385745103,1758003034261,-1531.65,0.00021917,2]
[385745104,1758003034270,-480.0,0.00021917,2]
[385745105,1758003034281,-480.0,0.00021917,2]
[385745106,1758003034292,-584.37024212,0.00021917,2]
[385745107,1758003034303,-480.0,0.00021917,2]
[385745108,1758003034314,-480.0,0.00021917,2]
[385745109,1758003034324,-481.4,0.00021917,2]
[385745110,1758003034338,-480.0,0.00021917,2]
[385745111,1758003034348,-480.0,0.00021917,2]
[385745112,1758003034358,-480.0,0.00021917,2]
[385745113,1758003034368,-480.0,0.00021917,2]
[385745114,1758003034378,-473.32096204,0.00021917,2]
[385745115,1758003034387,-480.0,0.00021917,2]
[385745116,1758003034396,-314.68369324,0.00021917,2]
[385745117,1758003034406,-470.11623041,0.00021917,2]
[385745118,1758003034416,-467.09798883,0.00021917,2]
[385745119,1758003034425,-480.0,0.00021917,2]
[385745120,1758003034434,-480.0,0.00021917,2]
[385745121,1758003034443,-480.0,0.00021917,2]
[385745122,1758003034452,-480.0,0.00021917,2]
[385745123,1758003034462,-169.75627393,0.00021917,2]
[385745124,1758003034471,-488.54173839,0.00021917,2]
[385745125,1758003034480,-480.0,0.00021917,2]
[385745126,1758003034489,-468.23867986,0.00021917,2]
[385745127,1758003034499,-589.37,0.00021917,2]
[385745128,1758003034508,-470.89037462,0.00021917,2]
[385745129,1758003034517,-480.0,0.00021917,2]
[385745130,1758003034527,-480.0,0.00021917,2]
[385745131,1758003034535,-480.0,0.00021917,2]
[385745132,1758003034545,-467.70068758,0.00021917,2]
[385745133,1758003034554,-480.0,0.00021917,2]
[385745134,1758003034563,-500.0,0.00021917,2]
[385745135,1758003034572,-500.0,0.00021917,2]
[385745136,1758003034581,-500.0,0.00021972,3]
[385745137,1758003034590,-332.23355405,0.00021973,2]
[385745138,1758003034602,-169.28819836,0.00021973,2]
[385745139,1758003034611,-500.0,0.00021973,2]
[385745140,1758003034620,-91.37763318,0.00021973,2]
[385745141,1758003034631,-333.46923112,0.00021973,2]
[385745142,1758003034642,-62.7054818,0.00021973,2]
[385745143,1758003034651,-378.23616508,0.00021973,2]
[385745144,1758003034746,-334.78539847,0.00021973,2]
[385745149,1758003037991,-500.0,0.00021917,2]
[385745150,1758003038000,-288.60303952,0.00021917,2]
[385745151,1758003038010,-267.66400448,0.00021917,2]
[385745153,1758003038021,-212.33599552,0.00021917,2]
[385745154,1758003038030,-686.86,0.00021917,2]
[385745155,1758003038040,-480.0,0.00021917,2]
[385745156,1758003038050,-165.21460153,0.00021973,2]
[385745157,1758003038059,-385.76062095,0.00021973,2]
[385745158,1758003038155,-114.23937905,0.00021973,2]
[385745159,1758003038165,-500.0,0.00021973,2]
[385745160,1758003038174,-500.0,0.00021973,2]
[385745161,1758003038183,-522.6342153,0.00021973,2]
[385745162,1758003038192,-500.41937072,0.00021973,2]
[385745163,1758003038201,-500.0,0.00021973,2]
[385745164,1758003038210,-500.0,0.00021973,2]
[385745165,1758003038219,-500.0,0.00021973,2]
[385745166,1758003038229,-500.0,0.00021973,2]
[385745167,1758003038239,-500.0,0.00021973,2]
[385745168,1758003038248,-515.88487927,0.00021973,2]
[385745169,1758003038257,-500.0,0.00021973,2]
[385745170,1758003038266,-500.0,0.00021973,2]
[385745171,1758003038275,-500.0,0.00021973,2]
[385745172,1758003038284,-150.0,0.00021973,2]
[385745173,1758003038294,-500.0,0.00021973,2]
[385745174,1758003038303,-160.0,0.00022008,2]
[385745175,1758003038312,-417.15472785,0.00022008,2]
[385745176,1758003038323,-847.61663983,0.00022008,2]
[385745177,1758003038335,-160.0,0.00022008,2]
[385745178,1758003038344,-160.0,0.00022008,2]